bitfinex-derivatives/quotes_BTCF0:USTF0_20241022
["timestamp","ask_amount","ask_price","bid_price","bid_amount"]
[1729610553592,0.16264861,67214.0,67208.0,0.17524]
[1729610553890,0.23707661,67209.0,67208.0,0.17524]
[1729610554293,0.16264861,67209.0,67202.0,0.074434]
[1729610554592,0.334424,67213.0,67190.0,0.155848]
[1729610554593,0.23708461,67202.0,67201.0,0.00223143]
[1729610557793,0.23708461,67202.0,67201.0,0.07666843]
[1729610558191,0.16264861,67202.0,67201.0,0.07666843]
[1729610560693,0.23708461,67202.0,67201.0,0.00223143]
[1729610562789,0.07444,67199.0,67180.0,0.26]
[1729610562990,0.16264861,67184.0,67183.0,0.074457]
[1729610564395,0.16264861,67184.0,67181.0,0.17616]
[1729610564596,0.16264861,67182.0,67178.0,0.3608]
[1729610564799,0.26,67188.0,67178.0,0.435261]
[1729610564800,0.16264861,67181.0,67178.0,0.435261]
[1729610565006,0.07446,67180.0,67179.0,0.074461]
[1729610565389,0.26,67188.0,67180.0,0.074459]
[1729610565590,0.16264861,67181.0,67180.0,0.074459]
[1729610565802,0.23710761,67181.0,67180.0,0.074459]
[1729610565995,0.16264861,67181.0,67180.0,0.074459]
[1729610566992,0.16264861,67181.0,67180.0,0.334459]
[1729610567900,0.16264861,67181.0,67180.0,0.074459]
[1729610568100,0.16264861,67181.0,67180.0,0.334459]
[1729610569293,0.26,67190.0,67180.0,0.334459]
[1729610569501,0.01220294,67190.0,67184.0,0.26]
[1729610569697,0.16264861,67183.0,67182.0,0.074458]
[1729610572290,0.16264861,67183.0,67182.0,0.244458]
[1729610572495,0.01152259,67187.0,67186.0,0.074453]
[1729610572696,0.1741712,67187.0,67186.0,0.244453]
[1729610573203,0.16264861,67187.0,67186.0,0.244453]
[1729610574213,0.16264861,67187.0,67178.0,0.5288]
[1729610574511,0.16264861,67187.0,67186.0,0.244453]
[1729610576293,0.44677784,67199.0,67198.0,0.07444]
[1729610576499,0.08597784,67199.0,67198.0,0.24444]
[1729610576703,0.24862645,67199.0,67198.0,0.24444]
[1729610577002,0.16264861,67199.0,67198.0,0.24444]
[1729610577394,0.3608,67203.0,67199.0,0.074439]
[1729610577695,0.3608,67203.0,67202.0,0.244436]
[1729610577902,0.37218975,67203.0,67202.0,0.244436]
[1729610578102,0.60927236,67203.0,67202.0,0.244436]
[1729610578499,0.60927236,67203.0,67202.0,0.17]
[1729610578896,0.074436,67202.0,67201.0,0.074436]
[1729610579099,0.16264861,67202.0,67201.0,0.074436]
[1729610579399,0.16264861,67202.0,67200.0,0.16724]
[1729610579400,0.3608,67203.0,67202.0,0.074436]
[1729610579601,0.59788261,67203.0,67202.0,0.074436]
[1729610580094,0.74668549,67203.0,67202.0,0.074436]
[1729610580295,0.74668549,67203.0,67202.0,0.241676]
[1729610580505,0.67225149,67203.0,67202.0,0.241676]
[1729610581211,0.67225149,67203.0,67202.0,0.411676]
[1729610581411,0.50960288,67203.0,67202.0,0.244436]
[1729610581705,0.14657145,67203.0,67202.0,1.218876]
[1729610582002,0.14657145,67203.0,67202.0,1.44267355]
[1729610582516,0.14657145,67203.0,67202.0,0.605236]
[1729610582810,0.14657145,67203.0,67202.0,0.411676]
[1729610582811,0.30922006,67203.0,67202.0,0.411676]
[1729610583006,0.14657145,67203.0,67202.0,0.244436]
[1729610583213,0.14657145,67203.0,67202.0,0.411676]
[1729610583505,0.14657145,67203.0,67202.0,0.858076]
[1729610584110,0.14657145,67203.0,67202.0,0.95214104]
[1729610585008,0.14657145,67203.0,67202.0,1.17527295]
[1729610586305,0.14657145,67203.0,67202.0,1.17992781]
[1729610587002,0.3608,67216.0,67202.0,1.17527295]
[1729610587207,0.01188709,67220.0,67216.0,0.074419]
[1729610587416,0.3608,67223.0,67219.0,0.244417]
[1729610587915,0.16264861,67220.0,67219.0,0.244417]
[1729610591113,0.074407,67229.0,67228.0,0.074407]
[1729610591423,0.074407,67229.0,67228.0,0.60986035]
[1729610591424,0.16264861,67229.0,67228.0,0.60986035]
[1729610591716,0.162992,67241.0,67240.0,0.074393]
[1729610591909,0.162992,67241.0,67240.0,0.15944]
[1729610592112,0.26302645,67241.0,67240.0,0.233833]
[1729610592516,0.17442645,67241.0,67240.0,0.233833]
[1729610592910,0.16264861,67241.0,67240.0,0.233833]
[1729610593808,0.074369,67263.0,67245.0,0.074388]
[1729610594114,0.074385,67248.0,67245.0,0.244388]
[1729610594412,0.52344861,67246.0,67245.0,0.244388]
[1729610595312,0.16264861,67246.0,67245.0,0.244388]
[1729610597821,0.16264861,67246.0,67245.0,0.236388]
[1729610599127,0.23703561,67246.0,67245.0,0.1594]
[1729610599315,0.16264861,67246.0,67241.0,0.3608]
[1729610599514,0.23703961,67242.0,67241.0,0.3608]
[1729610599719,0.23703961,67242.0,67241.0,0.5202]
[1729610600223,0.23703961,67242.0,67241.0,0.594592]
[1729610601825,0.3608,67253.0,67241.0,1.74176]
[1729610602122,0.0016,67300.0,67282.0,0.074347]
[1729610602321,0.0016,67300.0,67268.0,0.00222914]
[1729610602322,0.3608,67307.0,67302.0,0.074325]
[1729610602520,0.3608,67313.0,67297.0,0.17]
[1729610602521,0.37231624,67313.0,67306.0,0.244321]
[1729610602716,0.37231624,67313.0,67312.0,0.17]
[1729610602912,0.37231624,67313.0,67308.0,0.17]
[1729610603119,0.37231624,67313.0,67309.0,0.1594]
[1729610603319,0.37231624,67313.0,67305.0,0.074321]
[1729610603514,0.37231624,67313.0,67306.0,0.1594]
[1729610603515,0.3608,67307.0,67306.0,0.1594]
[1729610603926,0.3608,67307.0,67306.0,0.3294]
[1729610604113,0.3608,67307.0,67306.0,0.17]
[1729610604317,0.3608,67307.0,67306.0,0.4194]
[1729610604622,0.37231624,67313.0,67306.0,0.4194]
[1729610604928,0.37231624,67313.0,67309.0,0.074317]
[1729610605612,0.37231624,67313.0,67306.0,0.4194]
[1729610605833,0.37231624,67313.0,67311.0,0.334314]
[1729610606034,0.01151624,67313.0,67312.0,0.074314]
[1729610606320,0.0891,67319.0,67311.0,0.26]
[1729610606523,0.10043801,67319.0,67316.0,0.26]
[1729610606722,0.10043801,67319.0,67316.0,0.20794331]
[1729610606924,0.10043801,67319.0,67318.0,0.074307]
[1729610613128,0.10043801,67319.0,67318.0,0.066307]
[1729610616123,0.80607801,67319.0,67310.0,0.00088]
[1729610616432,0.80607801,67319.0,67293.0,0.1524]
[1729610616433,0.3608,67311.0,67293.0,0.1524]
[1729610616633,0.3608,67295.0,67294.0,0.334334]
[1729610616830,0.3608,67302.0,67294.0,0.26]
[1729610617034,0.3608,67302.0,67301.0,0.334326]
[1729610617232,0.3608,67302.0,67301.0,0.074326]
[1729610618738,0.37212668,67302.0,67301.0,0.074326]
[1729610619538,0.0889,67318.0,67301.0,0.26]
[1729610619730,0.3608,67315.0,67301.0,0.4124]
[1729610619933,0.3608,67315.0,67310.0,0.074316]
[1729610620342,0.074312,67314.0,67310.0,0.074316]
[1729610620551,0.95587529,67315.0,67310.0,0.074316]
[1729610620840,0.95503529,67315.0,67310.0,0.074316]
[1729610621036,0.95503529,67315.0,67306.0,0.07432]
[1729610621242,0.074321,67306.0,67300.0,0.074327]
[1729610621429,0.3608,67301.0,67300.0,0.074327]
[1729610625340,0.3608,67301.0,67282.0,0.26222876]
[1729610625341,1.42736,67301.0,67282.0,0.26222876]
[1729610625537,1.42736,67301.0,67291.0,0.074337]
[1729610625538,0.3608,67292.0,67291.0,0.074337]
[1729610626244,0.3608,67292.0,67282.0,0.00222876]
[1729610626245,0.80664,67292.0,67282.0,0.00222876]
[1729610626437,0.074346,67283.0,67282.0,0.00222876]
[1729610626632,0.074346,67283.0,67280.0,0.074349]
[1729610626633,0.074348,67281.0,67280.0,0.074349]
[1729610627138,0.44588,67281.0,67280.0,0.074349]
[1729610627640,0.44767449,67284.0,67274.0,0.074355]
[1729610627840,0.3608,67277.0,67276.0,0.074354]
[1729610628543,0.37244849,67284.0,67283.0,0.074346]
[1729610629737,0.3608,67293.0,67292.0,0.074336]
[1729610630135,0.37245677,67293.0,67284.0,0.074345]
[1729610630334,0.37245677,67293.0,67292.0,0.074336]
[1729610630941,0.37245677,67293.0,67292.0,0.244336]
[1729610631248,0.37245677,67293.0,67292.0,0.074336]
[1729610631545,0.44679177,67293.0,67292.0,0.074336]
[1729610632541,1.48075178,67293.0,67278.0,0.17]
[1729610632849,0.3608,67283.0,67282.0,0.074347]
[1729610633346,0.435146,67283.0,67282.0,0.074347]
[1729610635042,0.074339,67290.0,67289.0,0.074336]
[1729610635245,0.3608,67293.0,67292.0,0.074336]
[1729610635544,0.435135,67293.0,67292.0,0.074336]
[1729610636340,0.44653225,67293.0,67292.0,0.074336]
[1729610636742,0.074339,67290.0,67284.0,0.074345]
[1729610637047,0.074339,67290.0,67289.0,0.074339]
[1729610638548,0.074356,67276.0,67275.0,0.074354]
[1729610639844,0.435153,67277.0,67276.0,0.074354]
[1729610640344,0.3608,67277.0,67269.0,0.17]
[1729610640547,0.074361,67271.0,67270.0,0.074358]
[1729610640755,0.074356,67274.0,67273.0,0.074354]
[1729610642263,0.074356,67274.0,67268.0,0.17]
[1729610642264,0.074361,67271.0,67270.0,0.074358]
[1729610642551,0.435161,67271.0,67270.0,0.074358]
[1729610643150,0.435161,67271.0,67268.0,0.17]
[1729610643151,0.3608,67271.0,67268.0,0.17]
[1729610643350,0.074363,67269.0,67268.0,0.07436]
[1729610643553,0.074363,67269.0,67258.0,0.3608]
[1729610643554,0.074371,67262.0,67261.0,0.074368]
[1729610643743,0.074379,67254.0,67249.0,0.5046]
[1729610644053,0.074379,67254.0,67253.0,0.074379]
[1729610644247,0.5308,67256.0,67250.0,0.15244]
[1729610644248,0.074381,67251.0,67250.0,0.15244]
[1729610644448,0.074381,67251.0,67246.0,0.074387]
[1729610644449,0.074387,67247.0,67246.0,0.074387]
[1729610644652,0.435187,67247.0,67246.0,0.074387]
[1729610645146,0.074381,67252.0,67246.0,0.17]
[1729610645343,0.074381,67252.0,67251.0,0.074381]
[1729610645845,0.37252849,67256.0,67247.0,0.244385]
[1729610645846,0.074383,67250.0,67247.0,0.244385]
[1729610646050,0.074384,67249.0,67248.0,0.074385]
[1729610646444,0.435184,67249.0,67248.0,0.074385]
[1729610646644,0.074393,67241.0,67240.0,0.074393]
[1729610646840,0.3608,67243.0,67237.0,0.3608]
[1729610647150,0.074399,67235.0,67234.0,0.0744]
[1729610647945,0.17,67235.0,67230.0,0.435204]
[1729610648150,0.17,67235.0,67230.0,0.074404]
[1729610648151,0.074403,67231.0,67230.0,0.074404]
[1729610648547,0.074403,67231.0,67230.0,0.244404]
[1729610648950,0.17,67231.0,67220.0,0.00223081]
[1729610649144,0.074407,67228.0,67225.0,0.07441]
[1729610649451,0.074407,67228.0,67227.0,0.074408]
[1729610649754,0.07441,67225.0,67224.0,0.17]
[1729610649943,0.07441,67225.0,67224.0,0.244411]
[1729610650144,0.074413,67222.0,67221.0,0.074414]
[1729610651248,0.074413,67222.0,67220.0,0.00223081]
[1729610651249,0.074414,67221.0,67220.0,0.00223081]
[1729610651846,0.244414,67221.0,67220.0,0.00223081]
[1729610652953,0.17,67221.0,67220.0,0.07664681]
[1729610653154,0.165611,67224.0,67221.0,0.074414]
[1729610653353,0.435214,67222.0,67220.0,0.07664681]
[1729610653546,0.3608,67222.0,67220.0,0.07664681]
[1729610653752,0.074414,67221.0,67220.0,0.07664681]
[1729610653947,0.074414,67221.0,67220.0,0.00223081]
[1729610657054,0.14875418,67225.0,67224.0,0.074411]
[1729610657253,0.14875418,67225.0,67224.0,0.244411]
[1729610657759,0.1605163,67225.0,67224.0,0.074411]
[1729610657960,0.2349263,67225.0,67224.0,0.074411]
[1729610659366,0.1605163,67225.0,67224.0,0.074411]
[1729610659551,0.1605163,67225.0,67224.0,0.066411]
[1729610661661,0.1605163,67225.0,67220.0,0.00223081]
[1729610661961,0.074422,67215.0,67210.0,0.3608]
[1729610662158,0.074422,67215.0,67212.0,0.074424]
[1729610662552,0.074422,67215.0,67211.0,0.17]
[1729610662861,0.3608,67222.0,67214.0,0.17]
[1729610662862,0.074418,67219.0,67214.0,0.17]
[1729610663061,0.074418,67219.0,67218.0,0.17]
[1729610663453,0.074418,67219.0,67215.0,0.17]
[1729610663660,0.074418,67219.0,67211.0,0.17]
[1729610664066,0.074416,67220.0,67219.0,0.074415]
[1729610664252,0.074417,67219.0,67217.0,0.074419]
[1729610664653,0.244414,67222.0,67220.0,0.074415]
[1729610664863,0.074414,67221.0,67220.0,0.074415]
[1729610666569,0.3608,67250.0,67221.0,0.44628]
[1729610666868,0.3608,67250.0,67249.0,0.074383]
[1729610666869,0.074383,67250.0,67249.0,0.074383]
[1729610667562,0.074391,67243.0,67242.0,0.074391]
[1729610667861,0.074386,67247.0,67242.0,0.15192]
[1729610668062,0.074386,67247.0,67246.0,0.074387]
[1729610668560,0.074384,67249.0,67243.0,0.074389]
[1729610668761,0.3608,67250.0,67243.0,0.074389]
[1729610668762,0.07439,67244.0,67243.0,0.074389]
[1729610669064,0.074389,67247.0,67246.0,0.074386]
[1729610670055,0.07439,67243.0,67242.0,0.22631]
[1729610670561,0.07439,67243.0,67228.0,0.074405]
[1729610670562,0.074409,67229.0,67228.0,0.074405]
[1729610670754,0.244406,67229.0,67228.0,0.15192]
[1729610671462,0.074406,67229.0,67228.0,0.226327]
[1729610672272,0.074403,67233.0,67232.0,0.074402]
[1729610672558,0.3608,67234.0,67233.0,0.074401]
[1729610673161,0.3608,67234.0,67233.0,0.226321]
[1729610673370,0.00088,67236.0,67235.0,0.074399]
[1729610673557,0.074394,67240.0,67239.0,0.074392]
[1729610674471,0.08597174,67240.0,67239.0,0.074392]
[1729610674876,0.074398,67236.0,67235.0,0.15192]
[1729610675168,0.074398,67236.0,67230.0,0.074403]
[1729610675169,0.6208,67236.0,67233.0,0.15192]
[1729610675666,0.0744,67234.0,67233.0,0.15192]
[1729610675869,0.074401,67233.0,67232.0,0.226321]
[1729610677064,0.074401,67233.0,67232.0,0.074401]
[1729610677266,0.074401,67233.0,67232.0,0.228881]
[1729610678170,0.074398,67237.0,67236.0,0.074397]
[1729610678667,0.074398,67237.0,67236.0,0.334397]
[1729610679070,0.074398,67237.0,67232.0,0.074402]
[1729610679263,0.3608,67235.0,67234.0,0.0744]
[1729610679464,0.3608,67235.0,67234.0,0.3344]
[1729610679674,0.074395,67239.0,67238.0,0.074395]
[1729610679870,0.3608,67241.0,67240.0,0.074393]
[1729610680065,0.16986724,67242.0,67238.0,0.26]
[1729610680270,0.074388,67246.0,67245.0,0.074388]
[1729610680466,0.3608,67248.0,67247.0,0.074386]
[1729610680667,0.435185,67248.0,67247.0,0.228866]
[1729610680877,0.44661298,67248.0,67247.0,0.228866]
[1729610684686,0.63222798,67248.0,67240.0,0.15448]
[1729610684969,0.074386,67247.0,67246.0,0.334386]
[1729610685174,0.074386,67247.0,67246.0,0.074386]
[1729610685974,0.074392,67244.0,67243.0,0.07439]
[1729610687273,0.074392,67241.0,67240.0,0.228871]
[1729610687477,0.435192,67241.0,67240.0,0.228871]
[1729610689577,0.435192,67241.0,67240.0,0.15448]
[1729610690275,0.435192,67241.0,67232.0,0.15448]
[1729610690276,0.37248667,67241.0,67232.0,0.15448]
[1729610690485,0.074403,67232.0,67231.0,0.074403]
[1729610690777,0.074403,67232.0,67231.0,0.066403]
[1729610691672,0.074403,67232.0,67231.0,0.220883]
[1729610691871,0.435202,67235.0,67234.0,0.0744]
[1729610692481,0.435202,67235.0,67234.0,0.3344]
[1729610692482,0.3608,67235.0,67234.0,0.3344]
[1729610692684,0.435199,67235.0,67234.0,0.3344]
[1729610693185,0.435199,67235.0,67234.0,0.0744]
[1729610694176,0.074402,67232.0,67231.0,0.074403]
[1729610694383,0.074402,67232.0,67231.0,0.228883]
[1729610694580,0.0918,67234.0,67231.0,0.15448]
[1729610694893,0.0918,67234.0,67233.0,0.244401]
[1729610695282,0.435199,67235.0,67233.0,0.244401]
[1729610695283,0.3608,67235.0,67234.0,0.0744]
[1729610697082,0.08607967,67241.0,67240.0,0.074393]
[1729610697886,0.074398,67238.0,67237.0,0.074395]
[1729610698079,0.074398,67238.0,67237.0,0.13333184]
[1729610698381,0.074398,67238.0,67237.0,0.074395]
[1729610698588,0.074398,67238.0,67237.0,0.13333184]
[1729610699084,0.44687967,67241.0,67240.0,0.074393]
[1729610699291,0.44687967,67241.0,67240.0,0.244393]
[1729610699477,0.08607967,67241.0,67240.0,0.244393]
[1729610699673,0.44687967,67241.0,67240.0,0.244393]
[1729610699890,0.44687967,67241.0,67240.0,0.30332984]
[1729610700481,0.44687967,67241.0,67240.0,0.244393]
[1729610701180,0.44687967,67241.0,67240.0,0.074393]
[1729610701583,0.44687967,67241.0,67240.0,0.13332984]
[1729610701979,0.44687967,67241.0,67240.0,0.30332984]
[1729610702175,0.3608,67241.0,67240.0,0.30332984]
[1729610702380,0.074378,67255.0,67251.0,0.074381]
[1729610702581,0.074383,67252.0,67251.0,0.244381]
[1729610702783,0.074385,67249.0,67248.0,0.074385]
[1729610702982,0.435185,67249.0,67248.0,0.228865]
[1729610703379,0.3608,67249.0,67248.0,0.228865]
[1729610703581,0.3608,67249.0,67248.0,0.28830036]
[1729610703787,0.3608,67249.0,67248.0,0.228865]
[1729610704386,0.074373,67259.0,67255.0,0.074377]
[1729610704587,0.074367,67266.0,67265.0,0.074364]
[1729610704792,0.074367,67266.0,67265.0,0.228844]
[1729610704985,0.0857486,67266.0,67265.0,0.228844]
[1729610705678,0.0113816,67266.0,67265.0,0.228844]
[1729610705887,0.074365,67266.0,67265.0,0.220844]
[1729610706192,0.3608,67271.0,67263.0,0.17]
[1729610706193,0.54225584,67271.0,67263.0,0.17]
[1729610706489,0.074368,67263.0,67257.0,0.15444]
[1729610706680,0.435174,67258.0,67257.0,0.228815]
[1729610706888,0.435174,67258.0,67257.0,0.32444]
[1729610707986,0.435174,67258.0,67246.0,0.17]
[1729610708191,0.07438,67252.0,67251.0,0.17]
[1729610708487,0.3608,67252.0,67246.0,0.17]
[1729610708686,0.074381,67251.0,67246.0,0.17]
[1729610708886,0.074381,67251.0,67247.0,0.15324]
[1729610709087,0.074385,67248.0,67247.0,0.15324]
[1729610709289,0.074381,67252.0,67251.0,0.074381]
[1729610710084,0.074381,67252.0,67251.0,0.244381]
[1729610710297,0.0897,67257.0,67255.0,0.074376]
[1729610710298,0.074377,67256.0,67255.0,0.074376]
[1729610710497,0.3608,67258.0,67257.0,0.074375]
[1729610711389,0.435162,67269.0,67268.0,0.074362]
[1729610711582,0.44685103,67269.0,67268.0,0.244362]
[1729610711982,0.44685003,67269.0,67268.0,0.32324]
[1729610712694,0.44685003,67269.0,67257.0,0.527214]
[1729610712695,0.44685003,67269.0,67266.0,0.15324]
[1729610712992,0.074365,67266.0,67265.0,0.15324]
[1729610713396,0.074365,67266.0,67252.0,0.05929341]
[1729610713397,0.074366,67265.0,67256.0,0.17]
[1729610713597,0.074379,67253.0,67252.0,0.15324]
[1729610713901,0.074379,67253.0,67252.0,0.32324]
[1729610714287,0.074379,67253.0,67252.0,0.39762]
[1729610714492,0.074379,67253.0,67252.0,0.32324]
[1729610714792,0.074379,67253.0,67252.0,0.39762]
[1729610715297,0.074375,67257.0,67252.0,0.39762]
[1729610715595,0.074375,67257.0,67256.0,0.17]
[1729610717899,0.37230895,67259.0,67258.0,0.074374]
[1729610719385,0.01150895,67259.0,67258.0,0.074374]
[1729610719590,0.074372,67260.0,67256.0,0.17]
[1729610719591,0.3608,67260.0,67256.0,0.17]
[1729610719787,0.074375,67257.0,67256.0,0.17]
[1729610720298,0.3608,67260.0,67252.0,0.32324]
[1729610720494,0.074379,67253.0,67252.0,0.32324]
[1729610720891,0.161979,67253.0,67252.0,0.32324]
[1729610721089,0.161979,67253.0,67244.0,0.3608]
[1729610721090,0.074388,67246.0,67245.0,0.074388]
[1729610721292,0.074388,67246.0,67245.0,0.14524]
[1729610721592,0.07439,67244.0,67243.0,0.17]
[1729610721793,0.07439,67244.0,67237.0,0.17]
[1729610721997,0.3608,67238.0,67237.0,0.244397]
[1729610722202,0.3608,67246.0,67239.0,0.074394]
[1729610722390,0.3608,67246.0,67240.0,0.17]
[1729610722591,0.3608,67246.0,67244.0,0.17]
[1729610722890,0.074388,67245.0,67244.0,0.17]
[1729610723091,0.3608,67246.0,67244.0,0.17]
[1729610723290,0.3608,67246.0,67245.0,0.074388]
[1729610723493,0.44681678,67246.0,67245.0,0.074388]
[1729610723894,0.44681678,67246.0,67236.0,0.435958]
[1729610723895,0.074394,67242.0,67241.0,0.074392]
[1729610724100,0.074394,67242.0,67238.0,0.17]
[1729610724101,0.17,67245.0,67238.0,0.17]
[1729610724403,0.37242978,67246.0,67245.0,0.074388]
[1729610724988,0.37242978,67246.0,67245.0,0.244388]
[1729610725594,0.37242978,67246.0,67245.0,0.074388]
[1729610726401,0.074399,67236.0,67235.0,0.074398]
[1729610726703,0.605199,67236.0,67235.0,0.074398]
[1729610727598,0.3608,67236.0,67235.0,0.244398]
[1729610727795,0.074389,67244.0,67235.0,0.244398]
[1729610728001,0.074389,67244.0,67243.0,0.07439]
[1729610730998,0.37227419,67246.0,67245.0,0.074388]
[1729610732200,0.44666119,67246.0,67245.0,0.074388]
[1729610733300,0.074393,67243.0,67242.0,0.07439]
[1729610734502,0.44666119,67246.0,67245.0,0.074388]
[1729610735291,0.074394,67243.0,67242.0,0.074391]
[1729610735492,0.244394,67243.0,67242.0,0.074391]
[1729610736804,0.244394,67243.0,67242.0,0.066391]
[1729610737195,0.074394,67243.0,67242.0,0.066391]
[1729610738903,0.3608,67244.0,67243.0,0.07439]
[1729610740610,0.605189,67244.0,67243.0,0.07439]
[1729610741407,0.074396,67240.0,67239.0,0.074392]
[1729610742701,0.36168,67244.0,67239.0,0.074392]
[1729610742910,0.36168,67244.0,67243.0,0.07439]
[1729610742911,0.3608,67244.0,67243.0,0.07439]
[1729610744110,0.435189,67244.0,67243.0,0.07439]
[1729610744306,0.074397,67237.0,67236.0,0.05929341]
[1729610744515,0.074398,67236.0,67235.0,0.074399]
[1729610744801,0.074398,67236.0,67230.0,0.05929341]
[1729610744802,0.435197,67237.0,67236.0,0.074398]
[1729610745912,0.435197,67237.0,67230.0,0.22929341]
[1729610746118,0.435203,67231.0,67230.0,0.074405]
[1729610746312,0.435203,67231.0,67224.0,0.06152407]
[1729610746510,0.77521,67225.0,67224.0,0.00223066]
[1729610746703,0.77521,67225.0,67216.0,0.07442]
[1729610746704,0.074419,67217.0,67216.0,0.07442]
[1729610747016,0.074422,67215.0,67214.0,0.074422]
[1729610750007,0.36168,67217.0,67216.0,0.07442]
[1729610750208,0.3608,67217.0,67216.0,0.07442]
[1729610750419,0.3608,67217.0,67216.0,0.22642]
[1729610752113,0.3608,67217.0,67216.0,0.21842]
[1729610754116,0.3608,67225.0,67216.0,0.152]
[1729610754313,0.3608,67225.0,67224.0,0.244411]
[1729610755015,0.3608,67226.0,67225.0,0.07441]
[1729610755217,0.3608,67226.0,67225.0,0.24441]
[1729610755415,0.435209,67226.0,67225.0,0.07441]
[1729610759811,0.074409,67226.0,67225.0,0.07441]
[1729610760325,0.435209,67226.0,67225.0,0.07441]
[1729610761429,0.074414,67222.0,67212.0,0.05929341]
[1729610761722,0.3608,67214.0,67208.0,0.17]
[1729610761927,0.074428,67209.0,67208.0,0.244428]
[1729610764524,0.074428,67209.0,67208.0,0.074428]
[1729610764726,0.074434,67206.0,67205.0,0.074429]
[1729610764919,0.3608,67206.0,67205.0,0.074429]
[1729610765125,0.435231,67206.0,67205.0,0.074429]
[1729610765525,0.3608,67206.0,67205.0,0.074429]
[1729610766135,0.01142961,67209.0,67205.0,0.074429]
[1729610766324,0.3608,67214.0,67213.0,0.074423]
[1729610766519,0.3608,67214.0,67213.0,0.244423]
[1729610767330,0.37253598,67214.0,67213.0,0.244423]
[1729610767528,0.37253598,67214.0,67213.0,0.236423]
[1729610768229,0.44695798,67214.0,67213.0,0.066423]
[1729610768528,0.61695798,67214.0,67213.0,0.066423]
[1729610768919,0.61695798,67214.0,67206.0,0.31456]
[1729610769123,0.435229,67208.0,67207.0,0.07443]
[1729610769427,0.074434,67206.0,67205.0,0.074432]
[1729610770126,0.0888,67207.0,67205.0,0.074432]
[1729610770333,0.16323,67207.0,67206.0,0.074431]
[1729610771430,0.0888,67207.0,67206.0,0.074431]
[1729610771633,0.3608,67208.0,67207.0,0.07443]
[1729610771831,0.3608,67208.0,67205.0,0.17]
[1729610772022,0.3608,67208.0,67205.0,0.388992]
[1729610773325,0.3608,67208.0,67206.0,0.074431]
[1729610773520,0.3608,67208.0,67205.0,0.31456]
[1729610773822,0.3608,67208.0,67207.0,0.07443]
[1729610775437,0.074431,67206.0,67205.0,0.05929341]
[1729610775736,0.074432,67205.0,67204.0,0.17]
[1729610776727,1.821632,67205.0,67199.0,0.05929341]
[1729610776928,0.07444,67198.0,67197.0,0.00223157]
[1729610777130,0.074452,67187.0,67184.0,0.05929341]
[1729610777331,0.435254,67186.0,67182.0,0.17]
[1729610777532,0.074456,67184.0,67181.0,0.05929341]
[1729610777730,0.435253,67186.0,67185.0,0.17]
[1729610777934,0.074456,67184.0,67182.0,0.17]
[1729610778340,0.074457,67183.0,67182.0,0.17]
[1729610779637,0.37222035,67186.0,67182.0,0.17]
[1729610779834,0.37222035,67186.0,67185.0,0.17]
[1729610780131,0.44667335,67186.0,67185.0,0.17]
[1729610782937,0.44667335,67186.0,67185.0,0.162]
[1729610784438,0.44667335,67186.0,67175.0,0.17]
[1729610784639,0.074464,67177.0,67175.0,0.17]
[1729610785234,0.074463,67177.0,67175.0,0.17]
[1729610785429,0.3608,67180.0,67175.0,0.17]
[1729610785631,0.074461,67179.0,67178.0,0.17]
[1729610786346,0.3608,67180.0,67175.0,0.17]
[1729610786532,0.074464,67176.0,67175.0,0.17]
[1729610787544,0.074464,67176.0,67175.0,0.244465]
[1729610788845,0.074464,67176.0,67175.0,0.17]
[1729610789445,0.01152946,67176.0,67175.0,0.17]
[1729610789744,0.074464,67176.0,67175.0,0.244465]
[1729610790140,0.3608,67180.0,67175.0,0.17]
[1729610790447,0.44678117,67180.0,67179.0,0.17]
[1729610792640,0.44678117,67180.0,67175.0,0.17]
[1729610792641,0.37232017,67180.0,67175.0,0.17]
[1729610792948,0.17,67177.0,67170.0,0.3608]
[1729610793246,0.074479,67163.0,67160.0,0.14384]
[1729610793444,0.074479,67163.0,67162.0,0.5308]
[1729610793838,0.074479,67163.0,67155.0,0.83789341]
[1729610794048,0.17,67160.0,67150.0,0.31384]
[1729610794248,0.074487,67156.0,67154.0,0.17]
[1729610794652,0.074488,67155.0,67154.0,0.17]
[1729610795648,0.435288,67155.0,67154.0,0.17]
[1729610795953,0.0745,67144.0,67137.0,0.04442467]
[1729610796147,0.074506,67139.0,67136.0,0.0767416]
[1729610796349,0.074506,67139.0,67138.0,0.17]
[1729610796656,0.36164,67143.0,67142.0,0.074502]
[1729610796957,0.435301,67143.0,67142.0,0.17]
[1729610797250,0.435301,67143.0,67136.0,0.0022336]
[1729610797251,0.5308,67143.0,67136.0,0.0022336]
[1729610797454,0.074506,67139.0,67137.0,0.17]
[1729610798247,0.37267574,67143.0,67137.0,0.162]
[1729610798754,0.37267574,67143.0,67142.0,0.17]
[1729610799055,0.37267574,67143.0,67142.0,0.074502]
[1729610799354,0.3608,67165.0,67142.0,1.052102]
[1729610799559,0.0905,67160.0,67159.0,0.17]
[1729610799859,0.0905,67160.0,67154.0,0.3608]
[1729610799860,0.074485,67158.0,67154.0,0.3608]
[1729610800045,0.074485,67158.0,67156.0,0.17]
[1729610800545,0.3608,67159.0,67153.0,0.31388]
[1729610800745,0.074489,67154.0,67153.0,0.31388]
[1729610800950,0.3608,67159.0,67148.0,0.17]
[1729610800951,0.074492,67151.0,67148.0,0.17]
[1729610801148,0.074485,67157.0,67150.0,0.17]
[1729610801353,0.074489,67155.0,67150.0,0.17]
[1729610801648,0.5308,67159.0,67147.0,0.14388]
[1729610801853,0.3608,67153.0,67147.0,0.14388]